[Event "Early-Titled-Tuesday-Blitz-May-28-2024"]
[Site "Chess.com"]
[Date "2024.05.28"]
[Round "8"]
[White "Sofia_Blokhin"]
[Black "pfalcon1949"]
[Result "1-0"]
[WhiteElo "2252"]
[BlackElo "1928"]
[TimeControl "180+1"]
[EndTime "9:29:24 PDT"]
[Termination "Sofia_Blokhin won by resignation"]

1. d4 {[%clk 0:03:00.9]} 1... d5 {[%clk 0:02:53.9]} 2. c4 {[%clk 0:03:00.4]}
2... e6 {[%clk 0:02:54]} 3. Nc3 {[%clk 0:02:59.9]} 3... Nf6 {[%clk 0:02:53.2]}
4. Nf3 {[%clk 0:02:59.9]} 4... Be7 {[%clk 0:02:52.3]} 5. e3 {[%clk 0:03:00]}
5... O-O {[%clk 0:02:51.8]} 6. Bd3 {[%clk 0:02:59]} 6... b6 {[%clk 0:02:52.2]}
7. cxd5 {[%clk 0:02:58.5]} 7... Nxd5 {[%clk 0:02:50.9]} 8. e4 {[%clk 0:02:55.6]}
8... Nxc3 {[%clk 0:02:50]} 9. bxc3 {[%clk 0:02:56.5]} 9... c5 {[%clk 0:02:49.7]}
10. O-O {[%clk 0:02:54.8]} 10... Bb7 {[%clk 0:02:49.1]} 11. Bb2 {[%clk
0:02:50.2]} 11... Nd7 {[%clk 0:02:48.9]} 12. Re1 {[%clk 0:02:46.5]} 12... Qc7
{[%clk 0:02:49]} 13. d5 {[%clk 0:02:41.4]} 13... exd5 {[%clk 0:02:45]} 14. exd5
{[%clk 0:02:40.4]} 14... Bf6 {[%clk 0:02:43.3]} 15. Qc2 {[%clk 0:02:34.1]} 15...
g6 {[%clk 0:02:41.2]} 16. c4 {[%clk 0:02:32.8]} 16... Bxb2 {[%clk 0:02:38.6]}
17. Qxb2 {[%clk 0:02:33.7]} 17... Rfe8 {[%clk 0:02:38.6]} 18. Ng5 {[%clk
0:02:26.2]} 18... Ne5 {[%clk 0:02:32.3]} 19. Bf1 {[%clk 0:02:18.9]} 19... Ba6
{[%clk 0:02:32]} 20. Rac1 {[%clk 0:02:15.3]} 20... Rad8 {[%clk 0:02:06.1]} 21.
Ne4 {[%clk 0:02:07.6]} 21... Nd7 {[%clk 0:01:25.4]} 22. g3 {[%clk 0:01:44.4]}
22... f5 {[%clk 0:01:01.1]} 23. Ng5 {[%clk 0:01:38.9]} 23... Qd6 {[%clk
0:00:50.7]} 24. Ne6 {[%clk 0:01:29.2]} 24... Rxe6 {[%clk 0:00:49.6]} 25. Rxe6
{[%clk 0:01:26.8]} 25... Qf8 {[%clk 0:00:50]} 26. Rce1 {[%clk 0:01:22.6]} 26...
f4 {[%clk 0:00:42.2]} 27. Bh3 {[%clk 0:01:15.8]} 27... Bxc4 {[%clk 0:00:38.2]}
28. Qd2 {[%clk 0:01:08]} 28... fxg3 {[%clk 0:00:34.3]} 29. hxg3 {[%clk 0:01:03]}
29... Nf6 {[%clk 0:00:31.2]} 30. Qf4 {[%clk 0:00:46]} 30... Nxd5 {[%clk
0:00:26.3]} 31. Qxc4 {[%clk 0:00:41.9]} 31... Qf3 {[%clk 0:00:20.6]} 32. Bg2
{[%clk 0:00:36.9]} 32... Qf5 {[%clk 0:00:14.2]} 33. R6e5 {[%clk 0:00:32.9]} 1-0

[Event "Early-Titled-Tuesday-Blitz-May-28-2024"]
[Site "Chess.com"]
[Date "2024.05.28"]
[Round "8"]
[White "Bauman_Guy"]
[Black "Cayse"]
[Result "0-1"]
[WhiteElo "2925"]
[BlackElo "2834"]
[TimeControl "180+1"]
[EndTime "9:29:27 PDT"]
[Termination "Cayse won by resignation"]

1. e4 {[%clk 0:03:00.9]} 1... e5 {[%clk 0:02:59.7]} 2. Nf3 {[%clk 0:03:00.6]}
2... Nc6 {[%clk 0:02:59.7]} 3. Bb5 {[%clk 0:03:01.1]} 3... a6 {[%clk 0:02:59.8]}
4. Ba4 {[%clk 0:03:01]} 4... Nf6 {[%clk 0:02:59.6]} 5. O-O {[%clk 0:03:01.5]}
5... Be7 {[%clk 0:02:59.8]} 6. d3 {[%clk 0:03:01.3]} 6... b5 {[%clk 0:02:55.3]}
7. Bb3 {[%clk 0:03:01.2]} 7... d6 {[%clk 0:02:55]} 8. a3 {[%clk 0:03:01.3]} 8...
O-O {[%clk 0:02:55]} 9. Nc3 {[%clk 0:03:01.5]} 9... Bg4 {[%clk 0:02:55]} 10. Be3
{[%clk 0:03:01.8]} 10... Nd4 {[%clk 0:02:53.1]} 11. Bxd4 {[%clk 0:03:02]} 11...
exd4 {[%clk 0:02:53.6]} 12. Nd5 {[%clk 0:03:02.7]} 12... Nxd5 {[%clk 0:02:53.6]}
13. Bxd5 {[%clk 0:03:03.6]} 13... Rb8 {[%clk 0:02:52.4]} 14. h3 {[%clk
0:03:03.4]} 14... Bd7 {[%clk 0:02:52.4]} 15. Nxd4 {[%clk 0:03:02.7]} 15... Bf6
{[%clk 0:02:53]} 16. c3 {[%clk 0:02:59.1]} 16... Bxd4 {[%clk 0:02:52.8]} 17.
cxd4 {[%clk 0:02:59.2]} 17... c6 {[%clk 0:02:53.1]} 18. Ba2 {[%clk 0:02:55.7]}
18... Qf6 {[%clk 0:02:53.6]} 19. Qd2 {[%clk 0:02:46.6]} 19... Qxd4 {[%clk
0:02:53]} 20. Qc3 {[%clk 0:02:47.2]} 20... Qxc3 {[%clk 0:02:49.4]} 21. bxc3
{[%clk 0:02:47.3]} 21... Rfc8 {[%clk 0:02:46.4]} 22. Rfb1 {[%clk 0:02:46.5]}
22... Kf8 {[%clk 0:02:45]} 23. f4 {[%clk 0:02:46.6]} 23... c5 {[%clk 0:02:44.7]}
24. Kf2 {[%clk 0:02:46.9]} 24... Ke7 {[%clk 0:02:44.7]} 25. Ke3 {[%clk
0:02:46.6]} 25... a5 {[%clk 0:02:44.7]} 26. Rb2 {[%clk 0:02:42.3]} 26... Rb6
{[%clk 0:02:24.9]} 27. Rab1 {[%clk 0:02:40.5]} 27... Rcb8 {[%clk 0:02:24.7]} 28.
d4 {[%clk 0:02:30.3]} 28... b4 {[%clk 0:02:23]} 29. cxb4 {[%clk 0:02:20.3]}
29... cxb4 {[%clk 0:02:05.8]} 30. axb4 {[%clk 0:02:19.8]} 30... Rxb4 {[%clk
0:02:03.3]} 31. Rxb4 {[%clk 0:02:19.3]} 31... Rxb4 {[%clk 0:02:00.5]} 32. Rxb4
{[%clk 0:02:04.3]} 32... axb4 {[%clk 0:02:00.5]} 33. e5 {[%clk 0:01:58.9]} 33...
f6 {[%clk 0:01:52.7]} 34. exf6+ {[%clk 0:01:37.5]} 34... Kxf6 {[%clk 0:01:50.4]}
35. Kd3 {[%clk 0:01:09]} 35... Bb5+ {[%clk 0:01:24]} 36. Bc4 {[%clk 0:01:07.8]}
36... Bxc4+ {[%clk 0:01:23.4]} 37. Kxc4 {[%clk 0:01:08.7]} 37... Kf5 {[%clk
0:01:23.9]} 38. Kxb4 {[%clk 0:00:43.3]} 38... Kxf4 {[%clk 0:01:23.9]} 39. Kb5
{[%clk 0:00:26.1]} 39... Ke4 {[%clk 0:01:22.3]} 40. Kc6 {[%clk 0:00:25.8]} 40...
d5 {[%clk 0:01:22.1]} 41. Kc5 {[%clk 0:00:25.6]} 41... h6 {[%clk 0:01:22.5]} 42.
h4 {[%clk 0:00:09.9]} 42... h5 {[%clk 0:01:22]} 43. g3 {[%clk 0:00:07.4]} 43...
g6 {[%clk 0:01:22.3]} 44. Kd6 {[%clk 0:00:07.7]} 44... Kxd4 {[%clk 0:01:22.6]}
45. Ke6 {[%clk 0:00:08.6]} 45... Ke4 {[%clk 0:01:21.9]} 46. Kf6 {[%clk
0:00:09.5]} 46... Kf3 {[%clk 0:01:16.1]} 47. Kxg6 {[%clk 0:00:08.8]} 47... Kg4
{[%clk 0:01:16.4]} 0-1

[Event "Early-Titled-Tuesday-Blitz-May-28-2024"]
[Site "Chess.com"]
[Date "2024.05.28"]
[Round "8"]
[White "MikeSailer"]
[Black "Chernov_Mikhail"]
[Result "1-0"]
[WhiteElo "2088"]
[BlackElo "2287"]
[TimeControl "180+1"]
[EndTime "9:29:27 PDT"]
[Termination "MikeSailer won on time"]

1. d4 {[%clk 0:02:28.1]} 1... Nf6 {[%clk 0:02:59.4]} 2. Nf3 {[%clk 0:02:27.4]}
2... g6 {[%clk 0:02:57.9]} 3. Bf4 {[%clk 0:02:22.7]} 3... Bg7 {[%clk 0:02:58.2]}
4. e3 {[%clk 0:02:22.5]} 4... d6 {[%clk 0:02:58.7]} 5. Be2 {[%clk 0:02:22.2]}
5... O-O {[%clk 0:02:59.2]} 6. h3 {[%clk 0:02:23]} 6... Nbd7 {[%clk 0:02:59.4]}
7. O-O {[%clk 0:02:23.6]} 7... Re8 {[%clk 0:03:00]} 8. c4 {[%clk 0:02:23.4]}
8... e5 {[%clk 0:03:00.4]} 9. Bh2 {[%clk 0:02:23.1]} 9... c6 {[%clk 0:02:55.8]}
10. Nc3 {[%clk 0:02:22.9]} 10... Qe7 {[%clk 0:02:50.5]} 11. Re1 {[%clk
0:02:20.7]} 11... e4 {[%clk 0:02:48.9]} 12. Nd2 {[%clk 0:02:20.9]} 12... Nf8
{[%clk 0:02:43.1]} 13. b4 {[%clk 0:02:17.2]} 13... h5 {[%clk 0:02:42.7]} 14. b5
{[%clk 0:02:12.5]} 14... N8h7 {[%clk 0:02:40.8]} 15. bxc6 {[%clk 0:02:09.9]}
15... bxc6 {[%clk 0:02:41.7]} 16. d5 {[%clk 0:02:10.1]} 16... Nxd5 {[%clk
0:02:13.4]} 17. Nxd5 {[%clk 0:02:04.6]} 17... cxd5 {[%clk 0:02:12.5]} 18. Rc1
{[%clk 0:01:49.1]} 18... Ng5 {[%clk 0:02:03.9]} 19. cxd5 {[%clk 0:01:46.3]}
19... Be5 {[%clk 0:01:39.8]} 20. Bxe5 {[%clk 0:01:44.5]} 20... Qxe5 {[%clk
0:01:39.9]} 21. Nc4 {[%clk 0:01:44.9]} 21... Qf6 {[%clk 0:01:31.6]} 22. Bf1
{[%clk 0:01:41.8]} 22... Bxh3 {[%clk 0:01:07.3]} 23. gxh3 {[%clk 0:01:16.1]}
23... Nf3+ {[%clk 0:01:05.3]} 24. Kh1 {[%clk 0:01:16.3]} 24... Re5 {[%clk
0:00:21.3]} 25. Bg2 {[%clk 0:01:09.4]} 25... Nh4 {[%clk 0:00:14.7]} 26. Nxe5
{[%clk 0:01:05.8]} 26... Qxe5 {[%clk 0:00:08]} 27. Qd4 {[%clk 0:00:57.7]} 27...
Qf5 {[%clk 0:00:05.5]} 28. Qxe4 {[%clk 0:00:45.5]} 28... Qxf2 {[%clk 0:00:03.5]}
29. Rf1 {[%clk 0:00:45.9]} 1-0

[Event "Early-Titled-Tuesday-Blitz-May-28-2024"]
[Site "Chess.com"]
[Date "2024.05.28"]
[Round "8"]
[White "GoltsevDmitry2000"]
[Black "manitodeplomo"]
[Result "1-0"]
[WhiteElo "2750"]
[BlackElo "2561"]
[TimeControl "180+1"]
[EndTime "9:29:34 PDT"]
[Termination "GoltsevDmitry2000 won by checkmate"]

1. e4 {[%clk 0:03:00.9]} 1... Nf6 {[%clk 0:02:50.2]} 2. e5 {[%clk 0:03:00.8]}
2... Nd5 {[%clk 0:02:49.9]} 3. Nc3 {[%clk 0:03:01.7]} 3... Nb6 {[%clk
0:02:48.8]} 4. d4 {[%clk 0:03:01.3]} 4... d6 {[%clk 0:02:49]} 5. Nf3 {[%clk
0:03:01.2]} 5... Bf5 {[%clk 0:02:39.3]} 6. Bg5 {[%clk 0:02:56.4]} 6... h6 {[%clk
0:02:28.4]} 7. Bh4 {[%clk 0:02:56.1]} 7... c6 {[%clk 0:02:27.1]} 8. Bd3 {[%clk
0:02:50.7]} 8... Qc8 {[%clk 0:02:05.4]} 9. O-O {[%clk 0:02:46.1]} 9... Bxd3
{[%clk 0:02:03.3]} 10. Qxd3 {[%clk 0:02:45.2]} 10... dxe5 {[%clk 0:02:02.9]} 11.
Nxe5 {[%clk 0:02:42.5]} 11... N8d7 {[%clk 0:02:01.7]} 12. Ng6 {[%clk 0:02:10.3]}
12... fxg6 {[%clk 0:01:54.2]} 13. Qxg6+ {[%clk 0:02:11.2]} 13... Kd8 {[%clk
0:01:53.4]} 14. Rfe1 {[%clk 0:02:03.7]} 14... Nf6 {[%clk 0:01:52.4]} 15. Bxf6
{[%clk 0:01:43.3]} 15... gxf6 {[%clk 0:01:46.3]} 16. Ne4 {[%clk 0:01:43.1]}
16... Nd7 {[%clk 0:01:01.1]} 17. Nc5 {[%clk 0:01:03.9]} 17... Nxc5 {[%clk
0:00:50.7]} 18. dxc5 {[%clk 0:01:03.9]} 18... b6 {[%clk 0:00:46.9]} 19. Qf7
{[%clk 0:00:29.7]} 19... Kc7 {[%clk 0:00:30]} 20. Rad1 {[%clk 0:00:25.4]} 20...
bxc5 {[%clk 0:00:21]} 21. b4 {[%clk 0:00:23.5]} 21... cxb4 {[%clk 0:00:20]} 22.
Rxe7+ {[%clk 0:00:21]} 22... Bxe7 {[%clk 0:00:18.9]} 23. Qxe7+ {[%clk
0:00:21.9]} 23... Kb8 {[%clk 0:00:13.6]} 24. Rd7 {[%clk 0:00:16.5]} 24... Qa6
{[%clk 0:00:04.5]} 25. Qd6+ {[%clk 0:00:16.2]} 25... Kc8 {[%clk 0:00:04.4]} 26.
Qc7# {[%clk 0:00:16.8]} 1-0

[Event "Early-Titled-Tuesday-Blitz-May-28-2024"]
[Site "Chess.com"]
[Date "2024.05.28"]
[Round "8"]
[White "Likvidator228"]
[Black "Louis-Paulsen-Fan"]
[Result "0-1"]
[WhiteElo "2518"]
[BlackElo "2334"]
[TimeControl "180+1"]
[EndTime "9:29:34 PDT"]
[Termination "Louis-Paulsen-Fan won by resignation"]

1. b3 {[%clk 0:02:57.6]} 1... d5 {[%clk 0:02:58.8]} 2. Bb2 {[%clk 0:02:57.8]}
2... Bg4 {[%clk 0:02:59.3]} 3. g3 {[%clk 0:02:57.5]} 3... c6 {[%clk 0:02:56.8]}
4. Bg2 {[%clk 0:02:58.1]} 4... Nd7 {[%clk 0:02:56.6]} 5. Nf3 {[%clk 0:02:58.6]}
5... Ngf6 {[%clk 0:02:54.8]} 6. O-O {[%clk 0:02:58.6]} 6... e6 {[%clk 0:02:54]}
7. c4 {[%clk 0:02:59.2]} 7... Bd6 {[%clk 0:02:53.8]} 8. d3 {[%clk 0:02:59.3]}
8... O-O {[%clk 0:02:53.3]} 9. Nbd2 {[%clk 0:02:59.9]} 9... e5 {[%clk
0:02:48.6]} 10. Qc2 {[%clk 0:02:59.7]} 10... Re8 {[%clk 0:02:48.1]} 11. Rfe1
{[%clk 0:02:58.9]} 11... e4 {[%clk 0:02:43.1]} 12. Nd4 {[%clk 0:02:52.1]} 12...
e3 {[%clk 0:02:34.1]} 13. fxe3 {[%clk 0:02:52.4]} 13... Rxe3 {[%clk 0:02:34.2]}
14. Nf1 {[%clk 0:02:51.6]} 14... Re8 {[%clk 0:02:32.4]} 15. a3 {[%clk 0:02:42]}
15... Rc8 {[%clk 0:02:28.9]} 16. b4 {[%clk 0:02:41.6]} 16... a6 {[%clk
0:02:10.5]} 17. c5 {[%clk 0:02:39.8]} 17... Bb8 {[%clk 0:02:07.8]} 18. Nb3
{[%clk 0:02:29.5]} 18... Ne5 {[%clk 0:02:01.2]} 19. Na5 {[%clk 0:02:24]} 19...
Qd7 {[%clk 0:01:58.8]} 20. Qd2 {[%clk 0:02:12.6]} 20... h5 {[%clk 0:01:47.7]}
21. Ne3 {[%clk 0:01:58.5]} 21... Bh3 {[%clk 0:01:38.4]} 22. Rf1 {[%clk
0:01:51.1]} 22... Bxg2 {[%clk 0:01:34.6]} 23. Kxg2 {[%clk 0:01:51.1]} 23... Neg4
{[%clk 0:01:32.1]} 24. Nxg4 {[%clk 0:01:39]} 24... Nxg4 {[%clk 0:01:33]} 25. Rf3
{[%clk 0:01:36.3]} 25... Be5 {[%clk 0:01:21.1]} 26. Bxe5 {[%clk 0:01:28.4]}
26... Rxe5 {[%clk 0:01:21.3]} 27. h3 {[%clk 0:01:26.8]} 27... Rce8 {[%clk
0:01:18.5]} 28. Re1 {[%clk 0:01:18.6]} 28... Ne3+ {[%clk 0:01:17.3]} 29. Kh2
{[%clk 0:01:19]} 29... h4 {[%clk 0:01:14.4]} 30. gxh4 {[%clk 0:01:14.4]} 30...
Qe7 {[%clk 0:01:05.7]} 31. Rf4 {[%clk 0:00:58.2]} 31... g5 {[%clk 0:01:05.3]}
32. hxg5 {[%clk 0:00:57.5]} 32... Rxg5 {[%clk 0:00:57.5]} 33. Kh1 {[%clk
0:00:27.1]} 33... Qe5 {[%clk 0:00:53.6]} 34. Rf3 {[%clk 0:00:24.9]} 34... Kf8
{[%clk 0:00:40.2]} 35. Rg1 {[%clk 0:00:24.3]} 35... Rxg1+ {[%clk 0:00:38]} 36.
Kxg1 {[%clk 0:00:24.6]} 36... Qg5+ {[%clk 0:00:37.3]} 37. Kf2 {[%clk 0:00:21.5]}
37... Qg2+ {[%clk 0:00:36.6]} 38. Ke1 {[%clk 0:00:19.2]} 38... Qg1+ {[%clk
0:00:35.9]} 0-1

[Event "Early-Titled-Tuesday-Blitz-May-28-2024"]
[Site "Chess.com"]
[Date "2024.05.28"]
[Round "8"]
[White "Aswathchess"]
[Black "Rsnr"]
[Result "1-0"]
[WhiteElo "2742"]
[BlackElo "2889"]
[TimeControl "180+1"]
[EndTime "9:29:35 PDT"]
[Termination "Aswathchess won by resignation"]

1. c4 {[%clk 0:03:00.9]} 1... c6 {[%clk 0:02:59.3]} 2. Nf3 {[%clk 0:03:00.6]}
2... d5 {[%clk 0:03:00.2]} 3. g3 {[%clk 0:03:00.5]} 3... Nf6 {[%clk 0:02:59.4]}
4. Bg2 {[%clk 0:03:00.5]} 4... g6 {[%clk 0:02:59.3]} 5. O-O {[%clk 0:03:00.4]}
5... Bg7 {[%clk 0:02:59.7]} 6. b3 {[%clk 0:02:58.3]} 6... Ne4 {[%clk 0:02:58.1]}
7. d4 {[%clk 0:02:57.3]} 7... O-O {[%clk 0:02:58.3]} 8. Bb2 {[%clk 0:02:57.6]}
8... a5 {[%clk 0:02:57.7]} 9. Nc3 {[%clk 0:02:54.2]} 9... Bf5 {[%clk 0:02:47.2]}
10. Ne5 {[%clk 0:02:49.9]} 10... Nxc3 {[%clk 0:02:32.3]} 11. Bxc3 {[%clk
0:02:50.8]} 11... Bxe5 {[%clk 0:02:33]} 12. dxe5 {[%clk 0:02:51]} 12... dxc4
{[%clk 0:02:33.8]} 13. bxc4 {[%clk 0:02:33.5]} 13... Be6 {[%clk 0:02:33.5]} 14.
Qb3 {[%clk 0:02:27.1]} 14... b5 {[%clk 0:02:33.2]} 15. Rfd1 {[%clk 0:02:23.5]}
15... Qc7 {[%clk 0:02:29.3]} 16. Bd4 {[%clk 0:02:08.9]} 16... Bxc4 {[%clk
0:02:28.7]} 17. Qe3 {[%clk 0:02:09.5]} 17... Be6 {[%clk 0:01:46.9]} 18. a4
{[%clk 0:02:01.4]} 18... b4 {[%clk 0:01:35.5]} 19. Rac1 {[%clk 0:02:00.5]} 19...
Ra6 {[%clk 0:01:35.8]} 20. h4 {[%clk 0:01:54.7]} 20... Nd7 {[%clk 0:01:24.3]}
21. h5 {[%clk 0:01:51.7]} 21... Rc8 {[%clk 0:01:18.6]} 22. Qd3 {[%clk
0:01:33.5]} 22... Rca8 {[%clk 0:00:56.8]} 23. hxg6 {[%clk 0:01:30.6]} 23... hxg6
{[%clk 0:00:56.8]} 24. Qe3 {[%clk 0:01:30.1]} 24... Rb8 {[%clk 0:00:50.4]} 25.
Be4 {[%clk 0:01:22.5]} 25... Qc8 {[%clk 0:00:32.1]} 26. Kg2 {[%clk 0:01:18.4]}
26... Qf8 {[%clk 0:00:29.5]} 27. Bxc6 {[%clk 0:01:13.6]} 27... Rxc6 {[%clk
0:00:25.8]} 28. Rxc6 {[%clk 0:01:12.5]} 28... Bd5+ {[%clk 0:00:26.3]} 29. f3
{[%clk 0:01:13]} 29... Bxc6 {[%clk 0:00:27.2]} 30. e6 {[%clk 0:01:13.4]} 30...
Nf6 {[%clk 0:00:25.9]} 31. Bxf6 {[%clk 0:01:03.6]} 31... exf6 {[%clk 0:00:26.8]}
32. e7 {[%clk 0:01:04.1]} 32... Qe8 {[%clk 0:00:05.5]} 33. Rh1 {[%clk
0:00:49.1]} 33... g5 {[%clk 0:00:05.8]} 34. Qd3 {[%clk 0:00:49]} 34... f5 {[%clk
0:00:02.2]} 35. Qxf5 {[%clk 0:00:48.1]} 1-0

[Event "Early-Titled-Tuesday-Blitz-May-28-2024"]
[Site "Chess.com"]
[Date "2024.05.28"]
[Round "8"]
[White "Viacheslav92"]
[Black "wild3000"]
[Result "0-1"]
[WhiteElo "2526"]
[BlackElo "2382"]
[TimeControl "180+1"]
[EndTime "9:29:38 PDT"]
[Termination "wild3000 won by resignation"]

1. e4 {[%clk 0:02:33.7]} 1... c5 {[%clk 0:02:58.5]} 2. Nf3 {[%clk 0:02:33.2]}
2... Nc6 {[%clk 0:02:58.1]} 3. d4 {[%clk 0:02:33.7]} 3... cxd4 {[%clk
0:02:58.5]} 4. Nxd4 {[%clk 0:02:34.6]} 4... a6 {[%clk 0:02:58.9]} 5. c4 {[%clk
0:02:34.3]} 5... d6 {[%clk 0:02:58.4]} 6. Nc3 {[%clk 0:02:34]} 6... g6 {[%clk
0:02:57.5]} 7. Be2 {[%clk 0:02:34]} 7... Bg7 {[%clk 0:02:57.7]} 8. Be3 {[%clk
0:02:34.5]} 8... Nf6 {[%clk 0:02:56.4]} 9. f3 {[%clk 0:02:34]} 9... O-O {[%clk
0:02:56.4]} 10. O-O {[%clk 0:02:33.5]} 10... Bd7 {[%clk 0:02:55.5]} 11. Qd2
{[%clk 0:02:33.3]} 11... Nxd4 {[%clk 0:02:55.5]} 12. Bxd4 {[%clk 0:02:33.1]}
12... Bc6 {[%clk 0:02:56.4]} 13. Rac1 {[%clk 0:02:31.8]} 13... Rc8 {[%clk
0:02:54.3]} 14. Rfd1 {[%clk 0:02:32.2]} 14... Nh5 {[%clk 0:02:50.4]} 15. Bxg7
{[%clk 0:02:26.8]} 15... Nxg7 {[%clk 0:02:50.3]} 16. Nd5 {[%clk 0:02:26.2]}
16... Ne6 {[%clk 0:02:42.7]} 17. f4 {[%clk 0:02:19.2]} 17... Bxd5 {[%clk
0:02:28.5]} 18. exd5 {[%clk 0:02:11]} 18... Qb6+ {[%clk 0:02:21]} 19. Kh1 {[%clk
0:02:06.6]} 19... Ng7 {[%clk 0:02:20.4]} 20. Bg4 {[%clk 0:02:05.6]} 20... Rc7
{[%clk 0:02:19.2]} 21. b3 {[%clk 0:02:04.1]} 21... Qa7 {[%clk 0:02:04]} 22. Re1
{[%clk 0:02:02.5]} 22... b5 {[%clk 0:02:01.4]} 23. h4 {[%clk 0:01:35.6]} 23...
bxc4 {[%clk 0:01:53.7]} 24. Rxc4 {[%clk 0:01:34.6]} 24... Rxc4 {[%clk
0:01:53.2]} 25. bxc4 {[%clk 0:01:35.5]} 25... Rb8 {[%clk 0:01:48.3]} 26. Qe3
{[%clk 0:01:33.8]} 26... Qxe3 {[%clk 0:01:42.2]} 27. Rxe3 {[%clk 0:01:34.7]}
27... Kf8 {[%clk 0:01:37.7]} 28. Rb3 {[%clk 0:01:35.1]} 28... Rxb3 {[%clk
0:01:34.3]} 29. axb3 {[%clk 0:01:36]} 29... a5 {[%clk 0:01:34.8]} 30. Kg1 {[%clk
0:01:35.6]} 30... h5 {[%clk 0:01:34.7]} 31. Bh3 {[%clk 0:01:25.4]} 31... e6
{[%clk 0:01:25.9]} 32. dxe6 {[%clk 0:01:23.8]} 32... fxe6 {[%clk 0:01:26.1]} 33.
Kf2 {[%clk 0:01:24.4]} 33... Ke7 {[%clk 0:01:23.9]} 34. Ke3 {[%clk 0:01:24.9]}
34... Nf5+ {[%clk 0:01:14.9]} 35. Bxf5 {[%clk 0:01:22.5]} 35... gxf5 {[%clk
0:01:15.1]} 36. Kd4 {[%clk 0:01:21]} 36... Kd7 {[%clk 0:01:01.4]} 37. c5 {[%clk
0:01:18.9]} 37... d5 {[%clk 0:00:56.7]} 38. Ke5 {[%clk 0:01:07.8]} 38... Kc6
{[%clk 0:00:55.1]} 39. Kxe6 {[%clk 0:01:08.3]} 39... d4 {[%clk 0:00:52.1]} 40.
g4 {[%clk 0:00:56.7]} 40... d3 {[%clk 0:00:37.8]} 41. gxf5 {[%clk 0:00:46.9]}
41... d2 {[%clk 0:00:37.6]} 42. f6 {[%clk 0:00:47.8]} 42... d1=Q {[%clk
0:00:37.7]} 43. f7 {[%clk 0:00:48.7]} 43... Qg4+ {[%clk 0:00:31.2]} 44. Ke7
{[%clk 0:00:47.7]} 44... Qxh4+ {[%clk 0:00:29.4]} 45. Ke8 {[%clk 0:00:44.4]}
45... Qxf4 {[%clk 0:00:28.9]} 46. f8=Q {[%clk 0:00:45.3]} 46... Qxf8+ {[%clk
0:00:28.8]} 47. Kxf8 {[%clk 0:00:46.2]} 47... h4 {[%clk 0:00:29.6]} 0-1

[Event "Early-Titled-Tuesday-Blitz-May-28-2024"]
[Site "Chess.com"]
[Date "2024.05.28"]
[Round "8"]
[White "HansOnTwitch"]
[Black "TigrVShlyape"]
[Result "1/2-1/2"]
[WhiteElo "3117"]
[BlackElo "2914"]
[TimeControl "180+1"]
[EndTime "9:29:41 PDT"]
[Termination "Game drawn by repetition"]

1. e4 {[%clk 0:02:59.1]} 1... c5 {[%clk 0:02:57.5]} 2. Nf3 {[%clk 0:02:58.4]}
2... e6 {[%clk 0:02:57.9]} 3. b3 {[%clk 0:02:57.7]} 3... a6 {[%clk 0:02:56.2]}
4. Bb2 {[%clk 0:02:57.8]} 4... b5 {[%clk 0:02:56.2]} 5. a4 {[%clk 0:02:56.5]}
5... b4 {[%clk 0:02:54.7]} 6. d3 {[%clk 0:02:52.9]} 6... Nc6 {[%clk 0:02:52.4]}
7. g3 {[%clk 0:02:52.9]} 7... d6 {[%clk 0:02:50.9]} 8. Bg2 {[%clk 0:02:53.1]}
8... e5 {[%clk 0:02:51.1]} 9. O-O {[%clk 0:02:51.3]} 9... Be7 {[%clk 0:02:50.9]}
10. Nfd2 {[%clk 0:02:51.6]} 10... Nf6 {[%clk 0:02:17.6]} 11. f4 {[%clk
0:02:43.3]} 11... h5 {[%clk 0:02:12]} 12. h3 {[%clk 0:02:15.6]} 12... Be6 {[%clk
0:02:07.7]} 13. Nc4 {[%clk 0:02:12.7]} 13... Bxc4 {[%clk 0:02:06.5]} 14. dxc4
{[%clk 0:02:05.9]} 14... h4 {[%clk 0:02:06.5]} 15. g4 {[%clk 0:02:05.9]} 15...
exf4 {[%clk 0:02:02.8]} 16. Rxf4 {[%clk 0:02:06.8]} 16... Ne5 {[%clk 0:01:59.9]}
17. Nd2 {[%clk 0:02:06.7]} 17... Nfd7 {[%clk 0:01:58.2]} 18. Nf1 {[%clk
0:02:02.1]} 18... Bg5 {[%clk 0:01:57.1]} 19. Rf2 {[%clk 0:02:01]} 19... Qe7
{[%clk 0:01:55.8]} 20. Qe2 {[%clk 0:01:58.5]} 20... O-O {[%clk 0:01:49.5]} 21.
Ne3 {[%clk 0:01:58]} 21... Bxe3 {[%clk 0:01:49.4]} 22. Qxe3 {[%clk 0:01:58.9]}
22... f6 {[%clk 0:01:47.2]} 23. Rd1 {[%clk 0:01:55.6]} 23... Rad8 {[%clk
0:01:43.5]} 24. Rfd2 {[%clk 0:01:52.7]} 24... Nb8 {[%clk 0:01:42.4]} 25. Qf2
{[%clk 0:01:50.3]} 25... g5 {[%clk 0:01:37.7]} 26. Rd5 {[%clk 0:01:49]} 26...
Nbc6 {[%clk 0:01:37.6]} 27. Qd2 {[%clk 0:01:48.6]} 27... Rd7 {[%clk 0:01:21.3]}
28. Kh1 {[%clk 0:01:37.8]} 28... Rfd8 {[%clk 0:01:19.3]} 29. Bf1 {[%clk
0:01:36.8]} 29... a5 {[%clk 0:01:18.6]} 30. Qf2 {[%clk 0:01:33.8]} 30... Re8
{[%clk 0:01:13.6]} 31. Qf5 {[%clk 0:01:22.1]} 31... Qe6 {[%clk 0:01:11.1]} 32.
Bg2 {[%clk 0:01:14.8]} 32... Kg7 {[%clk 0:01:07.4]} 33. Kg1 {[%clk 0:01:01.4]}
33... Rdd8 {[%clk 0:01:04.8]} 34. Bxe5 {[%clk 0:00:43]} 34... Nxe5 {[%clk
0:01:02.5]} 35. Qxe6 {[%clk 0:00:43.1]} 35... Rxe6 {[%clk 0:01:01.3]} 36. Rxc5
{[%clk 0:00:43.5]} 36... dxc5 {[%clk 0:01:00]} 37. Rxd8 {[%clk 0:00:43.3]} 37...
Kf7 {[%clk 0:00:52]} 38. Ra8 {[%clk 0:00:40.8]} 38... Rd6 {[%clk 0:00:51.8]} 39.
Rxa5 {[%clk 0:00:27.8]} 39... Rd1+ {[%clk 0:00:51.6]} 40. Kf2 {[%clk 0:00:20.4]}
40... Rd2+ {[%clk 0:00:51.8]} 41. Kf1 {[%clk 0:00:19.7]} 41... Rxc2 {[%clk
0:00:52]} 42. Rxc5 {[%clk 0:00:20.1]} 42... Rc1+ {[%clk 0:00:52.4]} 43. Ke2
{[%clk 0:00:19]} 43... Rc2+ {[%clk 0:00:52.7]} 44. Kf1 {[%clk 0:00:19.1]} 44...
Rc1+ {[%clk 0:00:53.2]} 45. Ke2 {[%clk 0:00:19.5]} 45... Rc2+ {[%clk 0:00:53.5]}
46. Kf1 {[%clk 0:00:19.9]} 1/2-1/2